Cogmind - Beta 13 @@@ ROGUE MODE // 2024.05.23 @ 13:31:28 Player: Crackrock_Steady Result: Destroyed by X-67 Chaingunner with Minigun Performance ------------- Evolutions (3) 1500 Regions Visited (6) 1200 Robots Destroyed (43) 215 Value Destroyed (1356) 1356 Prototype IDs (2) 40 Alien Tech Used (0) 0 Bonus (33) 33 TOTAL SCORE: 4344 Bonus ------- Follower Combat Kills 33 Cogmind --------- Core Integrity 0/700 Matter 39/300 Energy 84/100 System Corruption 4% Temperature Cool (0) Movement Core (50) Location -7/Factory Parts ------- > --- POWER (1) -------- (None) > --- PROPULSION (3) --- (None) > --- UTILITY (6) ------ (None) > --- WEAPON (3) ------- (None) > --- INVENTORY (5) ---- Advanced Visual Processing Unit Peak State ------------ > --- POWER ------------ Deuterium Engine > --- PROPULSION ------- Light Treads Armored Treads Armored Treads > --- UTILITY ---------- Large Storage Unit Advanced Visual Processing Unit Signal Interpreter Hardened Medium Armor Plating Hacking Suite Hacking Suite > --- WEAPON ----------- Beam Rifle Flak Gun Flak Cannon > --- INVENTORY -------- Deuterium Engine Wheel Advanced Visual Processing Unit Sensor Array Improved Signal Interpreter Recoil Stabilizer Particle Charger Particle Charger ECM Suite Hardened Medium Armor Plating Hardened Medium Armor Plating Hardened Heavy Armor Plating Grenade Launcher Heavy Mace [Rating: 36] Favorites ----------- Power Ion Engine Engine Ion Engine Power Core Light Nuclear Core Propulsion Light Treads Treads Light Treads Wheel Compact Wheel Utility Signal Interpreter Device Sensor Array Storage Large Storage Unit Processor Signal Interpreter Hackware Hacking Suite Protection Hardened Medium Armor Plating Weapon Assault Rifle Energy Gun Spread Laser Energy Cannon Heavy Ion Cannon Ballistic Gun Assault Rifle Ballistic Cannon Flak Cannon Launcher Grenade Launcher Impact Weapon Heavy Mace Build | -11 -10 -10 -9 -9 -8 -7 ------- Run | Yrd Mat Min Mat Min Mat Fac Slots Evolved 6 | . . . 2 . 2 2 Power . | . . . . . . . Propulsion 1 | . . . . . 1 . Utility 4 | . . . 2 . 1 1 Weapon 1 | . . . . . . 1 Parts Attached 64 | 7 4 2 7 8 21 15 Power 8 | 1 . . 1 1 3 2 Engine 7 | 1 . . 1 1 2 2 Core 1 | . . . . . 1 . Reactor . | . . . . . . . Propulsion 16 | 2 3 . . 3 7 1 Treads 8 | 2 3 . . . 3 . Leg . | . . . . . . . Wheel 8 | . . . . 3 4 1 Hover . | . . . . . . . Flight . | . . . . . . . Utility 17 | 2 1 . 4 . 3 7 Device 4 | 1 . . 1 . . 2 Storage 2 | 1 . . 1 . . . Processor 3 | . 1 . 2 . . . Hackware 2 | . . . . . . 2 Protection 6 | . . . . . 3 3 Artifact . | . . . . . . . Weapon 23 | 2 . 2 2 4 8 5 Energy Gun 7 | . . . . 4 3 . Energy Cannon 1 | . . . . . . 1 Ballistic Gun 10 | 2 . 1 2 . 3 2 Ballistic Cannon 1 | . . . . . 1 . Launcher 3 | . . 1 . . 1 1 Special Weapon . | . . . . . . . Impact Weapon 1 | . . . . . . 1 Slashing Weapon . | . . . . . . . Piercing Weapon . | . . . . . . . Special Melee Weapon . | . . . . . . . Unidentified Prototypes . | . . . . . . . Parts Lost 37 | . . . . 6 11 20 Power 5 | . . . . 1 2 2 Propulsion 10 | . . . . 2 4 4 Utility 12 | . . . . . 2 10 Weapon 10 | . . . . 3 3 4 Highest Loss Streak 18 | . . . . 3 6 18 To Critical Strikes . | . . . . . . . Average Slot Usage (%) 92 | . 100 100 100 83 89 95 Engine 8 | . 14 14 11 10 4 6 Treads 14 | . 28 28 22 4 5 18 Wheel 5 | . . . . 2 13 1 Device 7 | . 1 . 11 11 9 8 Storage 10 | . 14 14 11 11 9 6 Processor 17 | . 12 14 22 22 18 14 Hackware 1 | . . . . . . 5 Protection 4 | . . . . . 8 6 Energy Gun 6 | . . . . 17 8 4 Ballistic Gun 12 | . 28 28 22 4 9 6 Ballistic Cannon 1 | . . . . . . 6 Naked Turns . | . . . . . . . Heaviest Build 57 | 15 15 14 34 34 47 57 Greatest Support 60 | 40 40 40 40 40 60 60 Greatest Overweight (x) 11 | . . . . 11 4 7 Average Overweight (x) . | . . . . 3 . . Largest Inventory Capacity 15 | 8 8 8 15 15 15 15 Average Capacity 13 | 7 8 8 14 15 15 14 Most Carried 15 | 5 8 8 15 15 15 15 Average Carried 12 | 2 7 8 9 13 13 14 Final Capacity 15 | 8 8 8 15 15 15 5 Final Carried 15 | 2 8 8 15 14 15 1 Class Distribution -------------------- 43% | Scavenger-Skirmisher 33% | Skirmisher 22% | Mutant Dominant Class ---------------- Mutant | -10/Materials Mutant | -10/Mines Scavenger-Skirmisher | -9/Materials Skirmisher | -9/Mines Skirmisher | -8/Materials Scavenger-Skirmisher | -7/Factory Resources | -11 -10 -10 -9 -9 -8 -7 ----------- Run | Yrd Mat Min Mat Min Mat Fac Matter Collected 1218 | 227 111 63 175 109 397 136 Remotely . | . . . . . . . Salvage Created 1449 | 70 123 14 117 61 833 231 Parts 85 | 11 10 3 8 2 44 7 Haulers Intercepted 1 | . . . . . 1 . Recyclers Shooed 3 | . . . . . 2 1 Parts Field Recycled . | . . . . . . . Retrieved Matter . | . . . . . . . Parts Self-Destructed . | . . . . . . . Prevented . | . . . . . . . Kills | -11 -10 -10 -9 -9 -8 -7 ------- Run | Yrd Mat Min Mat Min Mat Fac Combat Hostiles Destroyed 40 | . 3 2 1 11 17 6 Guns 28 | . 3 . 1 11 11 2 Cannons 7 | . . . . . 3 4 AOE 4 | . . 2 . . 2 . Classes Destroyed 12 | 1 2 1 2 2 4 . Builder 1 | . . . . . 1 . Tunneler 5 | 3 . . . 1 1 . Hauler 1 | . . . . . 1 . Recycler 3 | . . . 1 . 1 1 Watcher 3 | . 1 . . . 2 . Swarmer 6 | . . 2 . . 4 . Grunt 15 | . 3 . . . 7 5 Sentry 6 | . . . 1 . 4 1 Demolisher 1 | . . . . 1 . . Hunter 1 | . . . . . 1 . Heavy 1 | . . . . . 1 . Assembled 10 | . . . . 10 . . Best Kill Streak 5 | 2 1 2 2 3 5 3 Combat Bots Only 5 | . 1 2 1 3 5 3 Max Kills in Single Turn 2 | 2 1 2 2 1 1 1 Gunslinging . | . . . . . . . Exploded 2 | . . 2 . . 1 . Melee . | . . . . . . . Uniques/NPCs Destroyed . | . . . . . . . Combat | -11 -10 -10 -9 -9 -8 -7 -------- Run | Yrd Mat Min Mat Min Mat Fac Hostile Shots Fired 468 | . 24 5 6 55 141 237 Missed 121 | . 10 3 3 11 40 54 Damage Taken 6392 | . 177 15 43 1119 1742 3296 Core 1151 | . 35 . . 323 81 712 Absorbed by Shields . | . . . . . . . Core Remaining (%) 72 | 100 . 86 . 19 85 . Volleys Fired 162 | 8 22 1 5 27 80 19 Largest 3 | 2 2 2 2 2 2 3 Hottest 137 | 40 40 50 40 130 130 137 Shots Fired 332 | 16 44 2 10 53 157 50 Gun 293 | 16 44 1 10 53 144 25 Cannon 35 | . . . . . 11 24 Launcher 4 | . . 1 . . 2 1 Special . | . . . . . . . Kinetic 198 | 16 44 1 10 4 92 31 Thermal 130 | . . . . 49 63 18 Explosive 4 | . . 1 . . 2 1 Electromagnetic . | . . . . . . . Robot Hit Streak 14 | 4 14 3 9 5 14 5 Robot Miss Streak 15 | 3 5 1 . 15 15 12 Penetration Max . | . . . . . . . Secondary Targets 3 | . . . . 2 1 . Max Gunslinging Chain 1 | . . . . 1 1 . Shots Hit Robots 238 | 8 26 1 9 45 103 46 Core Hits 176 | 3 8 2 4 61 68 30 Critical Kills . | . . . . . . . Critical Parts Destroyed 3 | 1 1 . . . . 1 Critical Strikes 7 | 1 1 . . . 3 2 Burn 4 | . . . . . 3 1 Destroy 2 | 1 1 . . . . . Smash 1 | . . . . . . 1 Melee Attacks 16 | . . . . . . 16 Impact 16 | . . . . . . 16 Slashing . | . . . . . . . Piercing . | . . . . . . . Sneak Attacks . | . . . . . . . Combat Hostiles . | . . . . . . . Follow-up Attacks . | . . . . . . . Damage Inflicted 4270 | 125 336 112 127 494 1849 1227 Guns 2788 | 125 336 13 127 493 1432 262 Cannons 580 | . . . . . 178 402 Explosions 489 | . . 99 . . 215 175 Melee 373 | . . . . . . 373 Ramming 40 | . . . . 1 24 15 Kinetic 2034 | 125 336 13 127 17 962 454 Thermal 1334 | . . . . 476 648 210 Explosive 489 | . . 99 . . 215 175 Electromagnetic . | . . . . . . . Impact 373 | . . . . . . 373 Slashing . | . . . . . . . Piercing . | . . . . . . . Highest Corruption 4 | . . . . . . 4 Average Corruption 1 | . . . . . . 1 Corruption Purged . | . . . . . . . Corruption Blocked . | . . . . . . . Effects 2 | . . . . . . 2 Heat Flow Errors 1 | . . . . . . 1 Energy Discharges 1 | . . . . . . 1 Overload Shots . | . . . . . . . Overflow Damage 69 | . . . . . . 69 Projectiles . | . . . . . . . Explosions 30 | . . . . . . 30 Melee 39 | . . . . . . 39 Knockbacks 16 | . . . . . 4 12 Impact 3 | . . . . . . 3 Kinetic 13 | . . . . . 4 9 Secondary . | . . . . . . . Self-Inflicted Damage 67 | . . . . . 32 35 Shots 2 | . . . . . 1 1 Rammed 6 | . . . . 1 4 1 Targets Rammed 6 | . . . . 1 4 1 Kicked . | . . . . . . . Crushed . | . . . . . . . Highest Temperature 368 | . 8 . . 272 361 368 Average Temperature 107 | . 3 . . 80 101 157 Received Heat Transfer 1014 | . 96 . 18 60 561 279 Effects 9 | . . . . . 5 4 Energy Bleed 1 | . . . . . . 1 Interference 7 | . . . . . 4 3 Damage (minor) 1 | . . . . . 1 . Siege Activations . | . . . . . . . Robots Corrupted . | . . . . . . . Combat Hostiles . | . . . . . . . Parts Fried . | . . . . . . . Impact Corruptions 3 | . . . . . . 3 Robots Melted 1 | . . . . . 1 . Combat Hostiles 1 | . . . . . 1 . Parts Melted 1 | . . . . . 1 . Heat Transferred 2515 | . . . . 590 1444 481 Parts Sabotaged . | . . . . . . . Parts Stolen . | . . . . . . . Parts Stripped . | . . . . . . . Power Chain Reactions . | . . . . . . . Alert | -11 -10 -10 -9 -9 -8 -7 ------- Run | Yrd Mat Min Mat Min Mat Fac Peak Influence 273 | 15 193 148 89 34 273 175 Initial 123 | . 9 75 . 34 . 123 Average 71 | 4 95 121 57 12 72 94 Maximum Alert Level 1 | . . . . . 1 . Low Security (%) 98 | 100 100 100 100 100 96 100 Level 1 1 | . . . . . 3 . Level 2 . | . . . . . . . Level 3 . | . . . . . . . Level 4 . | . . . . . . . Level 5 . | . . . . . . . High Security . | . . . . . . . Max Security . | . . . . . . . Squads Dispatched 11 | . 2 . . . 4 5 Investigation 4 | . 1 . . . 1 2 Extermination 1 | . . . . . . 1 Reinforcement 6 | . 1 . . . 3 2 Assault . | . . . . . . . Garrison . | . . . . . . . Intercept . | . . . . . . . Searches Triggered . | . . . . . . . Construction Impeded 2 | . . . . . 1 1 Haulers Reinforced . | . . . . . . . Active Scanning Responses . | . . . . . . . Cargo Convoy Interrupts . | . . . . . . . Stealth | -11 -10 -10 -9 -9 -8 -7 --------- Run | Yrd Mat Min Mat Min Mat Fac Distress Signals 7 | . . . . 1 4 2 Communications Jammed . | . . . . . . . Distress Signals . | . . . . . . . Times Spotted 78 | . 11 3 3 13 31 17 Peak Tracking Total 7 | . 2 3 2 2 7 7 Tactical Retreats 8 | . 3 . . 2 2 1 Traps | -11 -10 -10 -9 -9 -8 -7 ------- Run | Yrd Mat Min Mat Min Mat Fac Traps Triggered 2 | . 1 . . . . 1 Indirectly . | . . . . . . . Trap Hack Attempts . | . . . . . . . Triggered . | . . . . . . . Disarmed . | . . . . . . . Reprogrammed . | . . . . . . . Reused . | . . . . . . . Traps Extracted . | . . . . . . . Installed . | . . . . . . . Triggered . | . . . . . . . Machines | -11 -10 -10 -9 -9 -8 -7 ---------- Run | Yrd Mat Min Mat Min Mat Fac Machines Disabled 4 | . . 1 . . 3 . Max in Single Turn 1 | . . 1 . . 1 . Machines Repaired . | . . . . . . . Machines Dismantled . | . . . . . . . Machines Sabotaged . | . . . . . . . Overloaded Fab Kills . | . . . . . . . Hacking | -11 -10 -10 -9 -9 -8 -7 --------- Run | Yrd Mat Min Mat Min Mat Fac Machines Accessed 13 | . 2 . 1 . 7 3 Terminals 13 | . 2 . 1 . 7 3 Fabricators . | . . . . . . . Repair Stations . | . . . . . . . Recycling Units . | . . . . . . . Scanalyzers . | . . . . . . . Garrison Access . | . . . . . . . Total Hacks 34 | . 6 . 2 . 20 6 Successful 5 | . 1 . . . 3 1 Failed 28 | . 4 . 2 . 17 5 Catastrophic 13 | . 1 . 1 . 9 2 Database Lockouts 1 | . 1 . . . . . Manual 20 | . 7 . 2 . 11 . Terminals 34 | . 6 . 2 . 20 6 Fabricators . | . . . . . . . Repair Stations . | . . . . . . . Recycling Units . | . . . . . . . Scanalyzers . | . . . . . . . Garrison Access . | . . . . . . . Terminal Hacks 5 | . 1 . . . 3 1 Record 1 | . . . . . 1 . Robot Analysis 1 | . 1 . . . . . Prototype ID Bank 1 | . . . . . 1 . Zone Layout 2 | . . . . . 1 1 Fabricator Hacks . | . . . . . . . Repair Station Hacks . | . . . . . . . Recycling Unit Hacks . | . . . . . . . Scanalyzer . | . . . . . . . Garrison Access Hacks . | . . . . . . . Unauthorized Hacks . | . . . . . . . Terminals . | . . . . . . . Fabricators . | . . . . . . . Repair Stations . | . . . . . . . Recycling Units . | . . . . . . . Scanalyzers . | . . . . . . . Garrison Access . | . . . . . . . Data Cores Recovered . | . . . . . . . Used . | . . . . . . . Hacking Detections 11 | . 1 . 1 . 6 3 Full Trace Events 8 | . 1 . 1 . 4 2 Feedback Events 1 | . . . . . . 1 Hackware Fried 1 | . . . . . . 1 Feedback Blocked . | . . . . . . . Robot Schematics Acquired . | . . . . . . . Robots Built . | . . . . . . . Authchips . | . . . . . . . Time . | . . . . . . . Total Robot Build Rating . | . . . . . . . Part Schematics Acquired . | . . . . . . . Parts Built . | . . . . . . . Authchips . | . . . . . . . Time . | . . . . . . . Total Part Build Rating . | . . . . . . . Parts Repaired . | . . . . . . . Time . | . . . . . . . Parts Recycled . | . . . . . . . Recycled Matter . | . . . . . . . Retrieved Matter . | . . . . . . . Retrieved Components . | . . . . . . . Parts Scanalyzed . | . . . . . . . Part Schematics Acquired . | . . . . . . . Parts Damaged . | . . . . . . . Bothacking | -11 -10 -10 -9 -9 -8 -7 ------------ Run | Yrd Mat Min Mat Min Mat Fac Used RIF Installer . | . . . . . . . Robots Hacked . | . . . . . . . Non-combat . | . . . . . . . Combat . | . . . . . . . Robot Hacks Applied . | . . . . . . . Relay Couplers Released . | . . . . . . . Fabnet Peak Effective % . | . . . . . . . Robots Rewired . | . . . . . . . Allies Hacked . | . . . . . . . Hacks Repelled . | . . . . . . . Allies | -11 -10 -10 -9 -9 -8 -7 -------- Run | Yrd Mat Min Mat Min Mat Fac Total Allies 2 | . . 2 . . . . Largest Group 2 | . . 2 2 2 . . Highest-Rated Group 45 | . . 45 45 45 . . Highest-Rated Ally 31 | . . 31 31 31 . . Total Orders . | . . . . . . . Ally Attacks 11 | . . . 9 2 . . Total Damage 186 | . . . 165 21 . . Kills 1 | . . . 1 . . . Allies Corrupted . | . . . . . . . Allies Melted . | . . . . . . . Intel | -11 -10 -10 -9 -9 -8 -7 ------- Run | Yrd Mat Min Mat Min Mat Fac Robot Analysis Total 1 | . 1 . . . . . Derelict Logs Recovered 2 | . . 1 . 1 . . Drone Launches . | . . . . . . . Drone Recoveries . | . . . . . . . Exploration | -11 -10 -10 -9 -9 -8 -7 ------------- Run | Yrd Mat Min Mat Min Mat Fac Turns Passed 4572 | 97 382 482 389 762 1490 970 Spaces Moved 1945 | 40 125 298 217 238 643 384 Core 86 | 5 . . . 78 . 3 Treads 1319 | 35 125 298 217 89 205 350 Legs . | . . . . . . . Wheels 540 | . . . . 71 438 31 Hover . | . . . . . . . Flight . | . . . . . . . Fastest Speed 50 | 50 160 160 160 100 93 50 Average Speed 173 | 146 160 160 160 268 146 185 Slowest Speed 600 | 160 160 160 160 600 250 400 Overloaded Moves . | . . . . . . . Propulsion Burnouts . | . . . . . . . Robots Hopped . | . . . . . . . Cave-ins Triggered . | . . . . . . . Exploration Rate (%) 34 | 4 29 61 14 69 53 12 Regions Visited 6 Branch Regions 2 Pre-discovered Areas 2 | . . 2 . . . . Known Exits Taken 5 | . 1 1 1 1 1 . Unknown Exits Taken 1 | 1 . . . . . . Scrap Searched 3 | . . 1 . 2 . . Spaces Dug . | . . . . . . . Terrain Destroyed 70 | . . 10 . . 56 4 Melee . | . . . . . . . Projectile 1 | . . . . . . 1 AOE 69 | . . 10 . . 56 3 Terrain Rammed . | . . . . . . . Walls Destroyed . | . . . . . . . Machines Disabled . | . . . . . . . Actions | -11 -10 -10 -9 -9 -8 -7 --------- Run | Yrd Mat Min Mat Min Mat Fac Total 2813 | 63 265 300 249 308 1053 575 Wait 546 | . 102 . 1 30 280 133 Move 1940 | 39 124 297 216 238 642 384 Hop . | . . . . . . . Pick Up 60 | 9 8 . 15 5 19 4 Fast Attach 3 | . 2 . . . . 1 Attach 39 | 7 . . 2 6 15 9 Detach . | . . . . . . . Swap 22 | . 2 2 5 2 6 5 Drop 20 | . 5 . 5 . 7 3 Fire 162 | 8 22 1 5 27 80 19 Melee 16 | . . . . . . 16 Ram 4 | . . . . . 4 . Kick . | . . . . . . . Crush 1 | . . . . . . 1 Escape Stasis . | . . . . . . . Rewire . | . . . . . . . Trap . | . . . . . . . Miscellaneous . | . . . . . . . Route ------- -11/Scrapyard -10/Materials -10/Mines -9/Materials -9/Mines -8/Materials (discovered 2 exits: *Fac x2) -7/Factory History --------- Turn | Location | Event 21 | -11/Scrapyard | Discovered new exit (range 15) 98 | -11/Scrapyard | Entered Materials 302 | -10/Materials | Build established: Mutant 451 | -10/Materials | Discovered new exit (range 16) 457 | -10/Materials | Central database locked down 478 | -10/Materials | Identified exit to Mines 480 | -10/Materials | Entered Mines 567 | -10/Mines | Learned location of Storage (-7) 938 | -10/Mines | Discovered new exit (range 16) 960 | -10/Mines | Identified exit to Materials 962 | -10/Mines | Entered Materials 962 | -9/Materials | Accompanied by 2 allies 962 | -9/Materials | Evolved 2 slots: Utility x2 967 | -9/Materials | Led the pair of lost Derelicts to an unsafe place 1119 | -9/Materials | Discovered new exit (range 7) 1349 | -9/Materials | Identified exit to Mines 1351 | -9/Materials | Entered Mines 1351 | -9/Mines | Accompanied by 2 allies 1411 | -9/Mines | Build established: Scavenger-Skirmisher 1444 | -9/Mines | Assembled infested the area 1449 | -9/Mines | Assisted by a Guerilla fighting off Assembled 1533 | -9/Mines | Lost 3 parts (2n1w) 1744 | -9/Mines | Core integrity fell below 50% 1995 | -9/Mines | Core integrity fell below 20% 2061 | -9/Mines | Learned location of 1 exit from Materials 2104 | -9/Mines | Discovered new exit (range 7) 2112 | -9/Mines | Identified exit to Materials 2113 | -9/Mines | Entered Materials 2113 | -8/Materials | Evolved 2 slots: Propulsion x1, Utility x1 2114 | -8/Materials | Identified exit to Factory 2754 | -8/Materials | Lost 6 parts (1p2n1u2w) 2934 | -8/Materials | Build established: Skirmisher 3559 | -8/Materials | Lost 4 parts (1p1n1u1w) 3593 | -8/Materials | Discovered exit to Factory (range 6) 3603 | -8/Materials | Entered Factory 3603 | -7/Factory | Evolved 2 slots: Utility x1, Weapon x1 3827 | -7/Factory | Build established: Scavenger-Skirmisher 3836 | -7/Factory | Hacking Suite fried by hacking feedback 4520 | -7/Factory | Core integrity fell below 50% 4553 | -7/Factory | Core integrity fell below 20% 4573 | -7/Factory | Destroyed by X-67 Chaingunner with Minigun Last Messages --------------- 04562_ R-06 Scavenger collects Med. Matter Pod. 04564_ R-06 Scavenger collects Particle Charger. 04564_ Signal Interpreter destroyed. 04564_ Critical hit (Blast). 04564_ Knocked back. 04567_ R-06 Scavenger collects ECM Suite. 04567_ Slug penetrates Wall. 04570_ Hvy. Mace blasted off. 04570_ Knocked back. 04570_ R-06 Scavenger collects Hvy. Mace. 04571_ Hrd. Heavy Armor Plating destroyed. 04571_ R-06 Scavenger collects Imp. Deuterium Engine. 04573_ Grenade Launcher destroyed. 04573_ Destroyed Grenade Launcher. 04573_ Destroyed Lgt. Ion Engine. 04573_ R-06 Scavenger destroyed. 04573_ ALERT: Construction progress impeded, dispatching reinforcements to local area. 04573_ Adv. Visual Processing Unit destroyed. Map ----- +----------------------------------------------------+ | ?????????????????????????????????????????????????? | | ?????????????????????????????????????????????????? | | ?????????????????????????????????????????????????? | | ?????????????????????????????????????????????????? | | ?????????????????????????????????????????????????? | | ?????????????????????????????????????????????????? | | ????????????????????"????????????????????????????? | | ????????????????????" ???????????????????????????? | | ????????????????????" ???????????????? ??????????? | | ???????????????????? ??????????????? ?????????? | | ???????????????????##+#####????????? ? ???????? | | ??????????????????? ########## ????? | | ???????????????????? #???? | | ???????????????????? / ? #???? | | ???????????????????? #???? | | ????????????????????? ^ ? #???? | | ????????????????????? ?? #???? | | ????????????????????? """""" #???? | | ????????????????????? """""" #???? | | ????????????????????? ## """""" #???? | | ?????????################### """""" #???? | | ?????????# # #????? | | ?????????# h """""" #????? | | ?????????# rH """""" #????? | | ?????????# *xx """""" #????? | | ?????????# !!! %@! u """""" #????? | | ?????????# !!= = =# k #????? | | ?????????# !!= % u # #????? | | ?????????############################ #????? | | ????????????????????#????#########??# #????? | | ??????????????????????????# #??# #????? | | ??????????????????????????# #??# #????? | | ??????????????????????????# #### #????? | | ??????????????????????????# + #????? | | ??????????????????????????# # #????? | | ??????????????????????????# # #????? | | ???????????????????????###########+## #????? | | ???????????????????????# # #????? | | ???????????????????????# """" """" # ###### | | ???????????????????????# """" """" =# | | ???????????????????????# """" """" # | | ???????????????????????# """" """" # | | ???????????????????????# """" """" + | | ???????????????????????# """" """" # | | ???????????????????????# """" """" # | | ???????????????????????# # | | ???????????????????????# ## ####### | | ???????????????????????# ## #???# ? | | ???????????????????????# ## #???# | | ???????????????????????############### ##### " | +----------------------------------------------------+ Best States ------------- Heat Dissipation 34 Energy Generation 16 Energy Capacity 290 Matter Stores 300 Matter Capacity 300 Sight Range 20 Robot Scan Range 14 Terrain Scan Density 10 Armor Coverage 600 Evasion (%) 41 Recoil Reduction 7 Offensive Hacking 10 Item Schematics ----------------- None Robot Schematics ------------------ None Fabricated ------------ Nothing Alien Tech Used ----------------- None Achievements -------------- None Challenges ------------ None Game ------ Seed MiniGrenadeFalx Manual? 0 Play Time 00:34:27 Cumulative 20.7 hours Start 2024.05.23 @ 12:57:46 End 2024.05.23 @ 13:31:28 Sessions 1 Manual Loads 0 Difficulty Rogue Special Mode None Game No. 47 Rogue 47 Adventurer 0 Explorer 0 Win Type - Total 0 Types 0/0/0/0/0/0/0/0/0 Lore% 25 Gallery% 22 Achievement% 21 Wizard Run 0 Options --------- Layout 1 ASCII 0 Keyboard 0 Movement Mouse Keybinds 0 Fullscreen 2 Font 24/Smallcaps Map View 50x35 Zoom Use 0% Tactical HUD 1 Map Filters NONE Filters NONE Steam 1 RUN: 74515059-c43a-41af-b9d7-b7af20ee29a1